bitfinex-derivatives/quotes_BTCF0:USTF0_20251219
["timestamp","ask_amount","ask_price","bid_price","bid_amount"]
[1766166831877,0.0114613,87298.0,87290.0,1.87e-06]
[1766166832378,0.0114622,87291.0,87290.0,1.87e-06]
[1766166832572,0.00584,87298.0,87265.0,1.46168]
[1766166832573,0.011462,87293.0,87265.0,1.46168]
[1766166832776,0.0114624,87290.0,87266.0,0.00584]
[1766166833072,0.0114624,87290.0,87270.0,0.0114648]
[1766166833468,0.00017187,87289.0,87271.0,0.00017187]
[1766166833669,0.0048,87288.0,87271.0,0.00017187]
[1766166833974,0.0048,87288.0,87250.0,0.4214576]
[1766166834272,0.0048,87288.0,87251.0,0.00584]
[1766166834477,0.0114629,87286.0,87263.0,0.0114658]
[1766166834677,0.0114636,87280.0,87251.0,0.00584]
[1766166834878,0.0114633,87283.0,87258.0,0.0114664]
[1766166835073,0.0114633,87283.0,87261.0,0.0114661]
[1766166835279,0.0114637,87280.0,87258.0,0.0114665]
[1766166835474,0.0114633,87283.0,87260.0,0.0114662]
[1766166835785,0.0114632,87284.0,87251.0,0.00584]
[1766166836075,0.0114635,87281.0,87251.0,0.00584]
[1766166836273,0.0114631,87284.0,87261.0,0.011466]
[1766166836578,0.0114629,87286.0,87263.0,0.0114658]
[1766166837077,0.0114636,87281.0,87259.0,0.0114663]
[1766166837278,0.0114645,87274.0,87252.0,0.0114672]
[1766166837481,0.0160645,87274.0,87251.0,0.0173074]
[1766166837670,0.00017187,87271.0,87251.0,0.0173074]
[1766166837871,0.011465,87270.0,87251.0,0.00584]
[1766166838072,0.0114653,87268.0,87251.0,0.00584]
[1766166838284,0.00017187,87271.0,87254.0,0.011467]
[1766166838476,0.00017187,87271.0,87251.0,0.00584]
[1766166839173,0.00017187,87271.0,87252.0,0.0114673]
[1766166839573,0.00017187,87271.0,87251.0,0.00584]
[1766166840368,0.00017187,87271.0,87251.0,0.0173073]
[1766166840567,0.00017187,87271.0,87251.0,0.00584]
[1766166840772,0.011467,87255.0,87231.0,0.0114699]
[1766166840978,0.00017187,87252.0,87231.0,0.00388]
[1766166841177,0.00017187,87252.0,87236.0,0.0114694]
[1766166841380,0.00017187,87252.0,87231.0,0.00388]
[1766166841381,0.00017187,87252.0,87232.0,0.0114699]
[1766166841676,0.00017187,87252.0,87235.0,0.0114694]
[1766166841975,9.353e-05,87251.0,87231.0,0.01535]
[1766166842180,9.353e-05,87251.0,87234.0,0.0114697]
[1766166842380,9.353e-05,87251.0,87231.0,0.00388]
[1766166842779,9.353e-05,87251.0,87232.0,0.0114699]
[1766166842983,0.00212,87250.0,87232.0,0.0114699]
[1766166843674,0.00212,87250.0,87231.0,0.00388]
[1766166843873,0.0114665,87259.0,87231.0,0.00388]
[1766166843874,0.0114651,87269.0,87242.0,0.0114685]
[1766166844072,0.0114651,87269.0,87230.0,0.4214576]
[1766166844073,1.46204,87282.0,87240.0,0.4214576]
[1766166844276,0.0114637,87280.0,87241.0,0.0153487]
[1766166844485,0.011464,87278.0,87241.0,0.0153487]
[1766166844688,1.46204,87282.0,87241.0,0.0153487]
[1766166844689,0.0114634,87282.0,87257.0,0.0114666]
[1766166844878,0.00388,87281.0,87261.0,0.00017187]
[1766166845074,0.01163587,87278.0,87261.0,0.00017187]
[1766166845388,0.00017187,87278.0,87261.0,0.00017187]
[1766166845581,0.00288,87277.0,87261.0,0.00017187]
[1766166845782,0.00356,87276.0,87261.0,0.00017187]
[1766166846089,0.0114647,87273.0,87261.0,0.00017187]
[1766166846283,0.0150242,87276.0,87261.0,0.00017187]
[1766166847382,0.00017187,87278.0,87261.0,0.00017187]
[1766166847583,7e-08,87278.0,87269.0,0.011465]
[1766166847787,7e-08,87278.0,87262.0,0.00572]
[1766166847984,7e-08,87278.0,87269.0,0.011465]
[1766166848172,7e-08,87278.0,87262.0,0.00572]
[1766166849188,7e-08,87278.0,87272.0,0.0114646]
[1766166849388,7e-08,87278.0,87262.0,0.00572]
[1766166849587,7e-08,87278.0,87263.0,0.00584]
[1766166849981,0.0114645,87274.0,87261.0,0.00017187]
[1766166850286,0.0114649,87271.0,87261.0,0.00017187]
[1766166850588,0.0114645,87274.0,87261.0,0.00017187]
[1766166852386,0.0114638,87270.0,87261.0,0.00017187]
[1766166852597,7e-08,87278.0,87261.0,0.00017187]
[1766166852782,7e-08,87278.0,87262.0,0.11567019]
[1766166852981,7e-08,87278.0,87263.0,0.00584]
[1766166853481,1.46208,87308.0,87278.0,0.0114626]
[1766166853686,0.0114605,87296.0,87272.0,0.00584]
[1766166853887,0.00584,87295.0,87273.0,0.0114634]
[1766166854090,0.0114607,87294.0,87273.0,0.0114634]
[1766166854592,0.00017187,87292.0,87275.0,0.00017187]
[1766166855577,0.01163287,87292.0,87275.0,0.00017187]
[1766166855778,0.00017187,87292.0,87275.0,0.00017187]
[1766166855977,0.0114619,87285.0,87275.0,0.00017187]
[1766166856183,0.00017187,87292.0,87268.0,0.011464]
[1766166856184,0.0114615,87288.0,87268.0,0.011464]
[1766166857189,0.0114615,87288.0,87269.0,0.00017187]
[1766166857386,0.00017187,87292.0,87269.0,0.00017187]
[1766166857586,0.00017187,87292.0,87280.0,0.0114625]
[1766166858302,0.00017187,87292.0,87277.0,0.0114628]
[1766166858500,1.87e-06,87292.0,87276.0,0.0008]
[1766166858800,1.87e-06,87292.0,87290.0,0.0114611]
[1766166859483,1.87e-06,87292.0,87275.0,0.0114631]
[1766166859684,1.87e-06,87292.0,87276.0,0.0058]
[1766166861797,1.87e-06,87292.0,87277.0,0.0114628]
[1766166862186,1.87e-06,87292.0,87276.0,0.0058]
[1766166862887,1.87e-06,87292.0,87278.0,0.0114627]
[1766166863086,1.87e-06,87292.0,87276.0,0.0058]
[1766166864500,1.87e-06,87292.0,87272.0,0.0114635]
[1766166864683,1.87e-06,87292.0,87278.0,0.0114626]
[1766166864882,1.87e-06,87292.0,87273.0,0.0058]
[1766166865289,1.87e-06,87292.0,87287.0,0.0114616]
[1766166865688,1.87e-06,87292.0,87273.0,0.0058]
[1766166865994,1.87e-06,87292.0,87291.0,0.011461]
[1766166866196,1.87e-06,87292.0,87274.0,0.1145705]
[1766166866397,1.87e-06,87292.0,87282.0,0.0114622]
[1766166866602,0.00204,87301.0,87265.0,0.0114643]
[1766166866896,0.00204,87301.0,87289.0,0.0114612]
[1766166867491,0.0114588,87309.0,87289.0,0.0114612]
[1766166867699,0.011459,87307.0,87290.0,0.00017187]
[1766166868298,0.00017187,87308.0,87290.0,0.00017187]
[1766166868901,0.0114597,87302.0,87290.0,0.00017187]
[1766166869290,0.0114592,87305.0,87290.0,0.00017187]
[1766166869990,0.00017187,87308.0,87290.0,0.00017187]
[1766166870201,0.0114596,87303.0,87290.0,0.00017187]
[1766166870398,0.00017187,87308.0,87290.0,0.00017187]
[1766166870594,0.15732811,87362.0,87290.0,0.42170939]
[1766166870595,0.0114575,87319.0,87290.0,0.42170939]
[1766166870797,0.011458,87315.0,87291.0,0.0058]
[1766166870990,0.00388,87320.0,87294.0,0.0114605]
[1766166871396,0.0114584,87311.0,87291.0,0.0058]
[1766166871593,0.0114583,87312.0,87291.0,0.0058]
[1766166872304,0.00017187,87314.0,87294.0,0.0114606]
[1766166872493,0.00017187,87314.0,87291.0,0.0058]
[1766166872896,0.00017187,87314.0,87292.0,0.0114609]
[1766166873099,0.00017187,87314.0,87294.0,0.0114606]
[1766166873401,0.00017187,87314.0,87291.0,0.0058]
[1766166873402,1.87e-06,87314.0,87306.0,0.011459]
[1766166873598,1.87e-06,87314.0,87308.0,0.0114587]
[1766166873791,1.87e-06,87314.0,87290.0,0.42170939]
[1766166873792,1.87e-06,87314.0,87309.0,0.0114586]
[1766166874108,1.87e-06,87314.0,87308.0,0.0114587]
[1766166874401,0.0114592,87305.0,87290.0,0.00017187]
[1766166874601,0.0114595,87303.0,87290.0,0.00017187]
[1766166874806,0.0114603,87297.0,87290.0,0.00017187]
[1766166875108,0.0058,87301.0,87270.0,0.42153752]
[1766166875406,0.0114605,87296.0,87276.0,0.011463]
[1766166875596,0.0114605,87296.0,87278.0,0.0114627]
[1766166875992,0.0058,87301.0,87252.0,0.0114661]
[1766166876198,0.0114608,87293.0,87276.0,0.00017187]
[1766166877403,0.0114611,87291.0,87276.0,0.00017187]
[1766166877599,0.00017187,87294.0,87276.0,0.00017187]
[1766166877902,0.0114612,87290.0,87276.0,0.00017187]
[1766166878405,0.01163257,87294.0,87277.0,0.0114628]
[1766166878594,0.011461,87291.0,87276.0,0.00017187]
[1766166878789,0.00017187,87294.0,87276.0,0.00017187]
[1766166878790,0.0114618,87286.0,87276.0,0.00017187]
[1766166878999,0.00017187,87294.0,87269.0,9.173e-05]
[1766166879000,0.0114626,87280.0,87269.0,9.173e-05]
[1766166879191,0.0114631,87276.0,87256.0,0.0114656]
[1766166879397,0.01676121,87280.0,87240.0,1.46172]
[1766166879600,0.00388,87279.0,87241.0,0.0058]
[1766166879790,0.00388,87279.0,87243.0,0.114581]
[1766166880000,0.00388,87279.0,87241.0,0.0058]
[1766166880197,0.00017187,87269.0,87251.0,0.01163817]
[1766166880497,0.00017187,87269.0,87251.0,0.00017187]
[1766166880696,0.00017187,87269.0,87252.0,0.0114661]
[1766166881702,0.00017187,87269.0,87255.0,0.0114658]
[1766166882304,0.0114642,87268.0,87251.0,0.00017187]
[1766166882601,0.00017187,87269.0,87251.0,0.00017187]
[1766166882602,0.00017187,87269.0,87252.0,0.0114661]
[1766166882995,0.00017187,87269.0,87254.0,0.0114658]
[1766166883196,1.87e-06,87269.0,87251.0,0.00017187]
[1766166883502,1.87e-06,87269.0,87255.0,0.0114658]
[1766166884097,1.87e-06,87269.0,87252.0,0.0114661]
[1766166884707,1.87e-06,87269.0,87251.0,0.01163807]
[1766166885096,1.87e-06,87269.0,87251.0,0.00017187]
[1766166885293,1.87e-06,87269.0,87255.0,0.0114657]
[1766166885699,0.0114585,87311.0,87256.0,0.11460004]
[1766166885898,0.0114633,87275.0,87256.0,0.11460004]
[1766166886102,0.0114633,87275.0,87251.0,0.00017187]
[1766166886302,0.0114622,87282.0,87259.0,0.0114651]
[1766166886506,0.0114622,87282.0,87260.0,0.002]
[1766166886704,0.0114627,87278.0,87260.0,0.002]
[1766166886903,0.0114627,87278.0,87255.0,0.0114658]
[1766166887100,0.0114634,87273.0,87256.0,0.00392]
[1766166887299,0.011463,87276.0,87256.0,0.00392]
[1766166887498,0.011463,87276.0,87256.0,0.0153855]
[1766166887704,0.01163447,87280.0,87259.0,0.0114652]
[1766166888005,0.0114628,87278.0,87259.0,0.0114652]
[1766166888507,0.0114626,87279.0,87259.0,0.0114652]
[1766166889006,0.01163447,87280.0,87261.0,0.011465]
[1766166889503,7e-08,87280.0,87260.0,0.42153752]
[1766166889709,7e-08,87280.0,87279.0,0.0114626]
[1766166889909,7e-08,87280.0,87262.0,0.0114648]
[1766166889910,7e-08,87280.0,87275.0,0.0114631]
[1766166891011,7e-08,87280.0,87277.0,0.0114628]
[1766166893502,7e-08,87280.0,87273.0,0.0114633]
[1766166893699,7e-08,87280.0,87275.0,0.0114631]
[1766166894102,7e-08,87280.0,87277.0,0.0114628]
[1766166894504,0.00204,87293.0,87277.0,0.0114628]
[1766166894898,0.00204,87293.0,87270.0,0.28740628]
[1766166895501,0.00017187,87290.0,87277.0,0.0114628]
[1766166895701,1.87e-06,87290.0,87279.0,0.0114626]
[1766166896709,1.87e-06,87290.0,87287.0,0.0114615]
[1766166897112,0.0971,87310.0,87288.0,0.0058]
[1766166897315,0.0114585,87311.0,87294.0,0.0114605]
[1766166897706,0.0114585,87311.0,87288.0,0.0058]
[1766166897707,0.0114591,87307.0,87288.0,0.0172613]
[1766166898014,0.0114591,87307.0,87290.0,0.0114611]
[1766166898216,0.00196,87314.0,87292.0,0.0114608]
[1766166898217,0.00017187,87306.0,87292.0,0.0114608]
[1766166899310,0.00017187,87306.0,87295.0,0.0114604]
[1766166899516,1.87e-06,87306.0,87295.0,0.0114604]
[1766166899714,1.87e-06,87306.0,87289.0,0.00017187]
[1766166899715,1.87e-06,87306.0,87301.0,0.0114597]
[1766166899912,1.46184,87330.0,87297.0,0.0172601]
[1766166900103,0.0058,87329.0,87298.0,0.01146]
[1766166900411,0.0058,87329.0,87297.0,0.0058]
[1766166900412,0.0058,87329.0,87316.0,0.0114577]
[1766166900617,0.0058,87329.0,87300.0,0.28740628]
[1766166900618,0.0058,87329.0,87313.0,0.011458]
[1766166900810,0.0114562,87328.0,87312.0,0.00017178]
[1766166901011,0.00011588,87330.0,87322.0,0.0114569]
[1766166901210,0.06052454,87358.0,87326.0,0.0114564]
[1766166901211,1.4618,87354.0,87326.0,0.0114564]
[1766166901520,0.0114559,87331.0,87321.0,0.00384]
[1766166901710,0.0114554,87334.0,87316.0,0.00384]
[1766166901912,0.00568,87337.0,87316.0,0.00192]
[1766166902215,0.0114553,87335.0,87318.0,0.00017178]
[1766166902817,0.0114557,87332.0,87318.0,0.00017178]
[1766166903215,0.00568,87337.0,87318.0,1.78e-06]
[1766166904211,0.0114563,87328.0,87318.0,1.78e-06]
[1766166904615,0.00017,87336.0,87318.0,1.78e-06]
[1766166904915,0.0114557,87332.0,87318.0,1.78e-06]
[1766166905118,0.0114553,87335.0,87318.0,1.78e-06]
[1766166905817,0.0114563,87328.0,87318.0,1.78e-06]
[1766166906222,0.0114566,87326.0,87318.0,1.78e-06]
[1766166906414,0.0114571,87322.0,87318.0,1.78e-06]
[1766166906723,0.0114566,87325.0,87318.0,1.78e-06]
[1766166907014,0.00017,87336.0,87318.0,1.78e-06]
[1766166907421,0.00017,87336.0,87322.0,0.011457]
[1766166907724,0.00017,87336.0,87319.0,0.0114573]
[1766166907922,0.00017,87336.0,87318.0,1.78e-06]
[1766166908219,0.0116252,87336.0,87318.0,1.78e-06]
[1766166908419,0.0114569,87323.0,87318.0,1.78e-06]
[1766166908612,0.0114572,87321.0,87318.0,1.78e-06]
[1766166909320,0.00017,87336.0,87318.0,1.78e-06]
[1766166909321,0.0114568,87323.0,87318.0,1.78e-06]
[1766166909524,0.0058,87335.0,87318.0,1.78e-06]
[1766166909819,0.00292,87349.0,87320.0,0.28740628]
[1766166910016,0.00292,87349.0,87335.0,0.0114551]
[1766166910618,0.00292,87349.0,87328.0,0.00568]
[1766166910828,0.00292,87349.0,87332.0,0.0114556]
[1766166911022,0.00292,87349.0,87328.0,0.00568]
[1766166911617,0.0114521,87359.0,87339.0,0.28740628]
[1766166911815,0.0114525,87357.0,87340.0,0.00017178]
[1766166912011,0.0058,87358.0,87335.0,0.00212]
[1766166912216,0.0114534,87349.0,87335.0,0.00212]
[1766166913019,0.00017178,87351.0,87335.0,0.00212]
[1766166913217,0.0114539,87346.0,87335.0,0.00212]
[1766166913816,0.0114536,87348.0,87333.0,8e-08]
[1766166914023,0.0114536,87348.0,87314.0,0.011458]
[1766166914024,0.0114556,87333.0,87314.0,0.011458]
[1766166914216,0.0114556,87333.0,87315.0,0.0058]
[1766166914516,0.0114556,87333.0,87316.0,0.0114577]
[1766166914725,0.0114556,87333.0,87317.0,0.0058]
[1766166915022,0.00017178,87334.0,87317.0,0.0058]
[1766166915221,0.011456,87330.0,87317.0,0.0058]
[1766166915421,0.0114555,87333.0,87317.0,0.0058]
[1766166915616,0.00017178,87334.0,87317.0,0.0058]
[1766166916214,8e-08,87334.0,87319.0,0.0114573]
[1766166916620,0.0114556,87333.0,87274.0,0.0114632]
[1766166916824,0.28740628,87330.0,87297.0,0.0114602]
[1766166917019,0.0058,87329.0,87297.0,0.0114602]
[1766166917222,0.0114577,87317.0,87296.0,0.00388]
[1766166917818,0.00017178,87315.0,87298.0,0.00017178]
[1766166918022,0.00017178,87315.0,87299.0,0.0058]
[1766166918216,0.011458,87314.0,87299.0,0.0058]
[1766166918620,0.00017178,87315.0,87299.0,0.0058]
[1766166918820,0.0114581,87314.0,87299.0,0.0058]
[1766166919818,0.00017178,87315.0,87299.0,0.0058]
[1766166920226,0.011458,87314.0,87299.0,0.0058]
[1766166921023,0.011458,87314.0,87298.0,8e-08]
[1766166921024,0.01146,87300.0,87298.0,8e-08]
[1766166921220,0.0114608,87294.0,87273.0,0.0114633]
[1766166921419,8.266e-05,87293.0,87273.0,0.00204]
[1766166921627,0.011461,87291.0,87268.0,0.0114639]
[1766166921818,0.011461,87291.0,87271.0,0.0114635]
[1766166922021,8.266e-05,87293.0,87271.0,0.0114635]
[1766166922230,0.0114621,87283.0,87273.0,0.00017178]
[1766166922623,0.00017178,87291.0,87273.0,0.01163508]
[1766166922829,0.00017178,87291.0,87275.0,0.011463]
[1766166923231,2.66e-06,87293.0,87280.0,0.28740628]
[1766166924226,2.66e-06,87293.0,87277.0,0.0114628]
[1766166924428,2.66e-06,87293.0,87273.0,0.00017178]
[1766166924823,2.66e-06,87293.0,87275.0,0.0114631]
[1766166925034,2.66e-06,87293.0,87273.0,0.00017178]
[1766166926236,2.66e-06,87293.0,87277.0,0.0114629]
[1766166926438,2.66e-06,87293.0,87277.0,0.0172629]
[1766166926836,1.46144,87321.0,87280.0,0.28740628]
[1766166927038,0.057271,87344.0,87277.0,0.0058]
[1766166927039,0.28740628,87350.0,87288.0,0.0114613]
[1766166927332,0.28740628,87350.0,87281.0,1.46144]
[1766166927333,0.0114571,87322.0,87289.0,0.00192]
[1766166927537,0.0114587,87309.0,87289.0,0.00192]
[1766166927740,0.00017178,87308.0,87290.0,0.00017178]
[1766166928039,0.011459,87307.0,87290.0,0.00017178]
[1766166928629,0.00017178,87308.0,87290.0,0.00017178]
[1766166928832,0.0114608,87293.0,87264.0,1.46148]
[1766166929032,0.0114611,87291.0,87273.0,0.0114633]
[1766166929340,0.0114607,87294.0,87277.0,0.0114628]
[1766166929933,0.01163248,87294.0,87277.0,0.01163458]
[1766166930444,0.01163248,87294.0,87277.0,0.00017178]
[1766166930644,0.0114561,87329.0,87300.0,0.0114598]
[1766166930843,0.01115211,87330.0,87278.0,0.12602926]
[1766166930844,0.0058,87328.0,87297.0,0.0114601]
[1766166931051,0.0058,87328.0,87298.0,0.0114601]
[1766166931342,0.0114579,87316.0,87298.0,0.0114601]
[1766166931844,0.0114582,87313.0,87298.0,0.00017178]
[1766166932144,0.00017178,87316.0,87298.0,0.00017178]
[1766166933739,0.0114589,87308.0,87298.0,0.00017178]
[1766166934744,0.01162958,87316.0,87298.0,8e-08]
[1766166934944,0.0114605,87296.0,87277.0,0.0114628]
[1766166935144,0.0114617,87287.0,87269.0,0.0114638]
[1766166935338,0.0114622,87282.0,87270.0,0.0058]
[1766166935539,0.0114626,87279.0,87270.0,0.0058]
[1766166935741,0.0114626,87279.0,87262.0,0.0114648]
[1766166935943,0.01163448,87279.0,87264.0,0.0114646]
[1766166936345,0.00017188,87279.0,87264.0,0.0114646]
[1766166936745,0.00017188,87279.0,87266.0,0.0114642]
[1766166937138,0.0114627,87278.0,87263.0,0.0058]
[1766166937339,0.00017188,87279.0,87263.0,0.0058]
[1766166939047,0.00017188,87279.0,87264.0,0.0114645]
[1766166940648,0.00017188,87279.0,87267.0,0.0114642]
[1766166940855,0.00017188,87279.0,87263.0,0.0172646]
[1766166941249,0.00017188,87279.0,87265.0,0.0114644]
[1766166941840,1.88e-06,87279.0,87265.0,0.0114644]
[1766166942045,1.88e-06,87279.0,87263.0,0.0058]
[1766166942550,0.0114634,87273.0,87262.0,0.00017188]
[1766166942859,1.88e-06,87279.0,87263.0,0.0058]
[1766166943044,0.0114631,87276.0,87263.0,0.0058]
[1766166944151,1.88e-06,87279.0,87264.0,0.0114645]
[1766166944657,0.0114631,87275.0,87263.0,0.0058]
[1766166945451,1.88e-06,87279.0,87263.0,0.0058]
[1766166946058,0.00568,87290.0,87265.0,0.0114644]
[1766166946255,0.0171413,87290.0,87263.0,0.0058]
[1766166946459,0.00568,87290.0,87263.0,0.0058]
[1766166947057,0.0114641,87268.0,87262.0,0.00017188]
[1766166947256,0.0114637,87271.0,87262.0,0.00017188]
[1766166948966,0.0058,87278.0,87262.0,0.00017188]
[1766166949263,0.0114636,87272.0,87262.0,0.00017188]
[1766166949667,0.0114631,87276.0,87262.0,0.00017188]
[1766166949855,0.0114633,87274.0,87262.0,0.00013188]
[1766166950164,0.0114636,87272.0,87262.0,0.00013188]
[1766166950464,0.0058,87278.0,87262.0,0.00013188]
[1766166950865,0.0114633,87274.0,87262.0,0.00013188]
[1766166951368,0.0114629,87277.0,87262.0,0.01159668]
[1766166951765,0.0114229,87277.0,87262.0,0.01159668]
[1766166952159,0.0058,87278.0,87271.0,0.0114636]
[1766166952361,0.011462,87284.0,87268.0,0.011464]
[1766166952658,0.01163378,87285.0,87266.0,0.0114642]
[1766166952864,0.0114621,87283.0,87266.0,0.0114643]
[1766166953069,0.0114621,87283.0,87268.0,0.011464]
[1766166953264,0.011462,87284.0,87268.0,0.011464]
[1766166953465,0.0114623,87282.0,87267.0,0.0058]
[1766166954471,0.00017188,87285.0,87267.0,0.0058]
[1766166954860,0.00017188,87285.0,87270.0,0.0114637]
[1766166955061,0.00017188,87285.0,87267.0,0.0058]
[1766166955258,0.0114621,87284.0,87267.0,0.0058]
[1766166955970,0.00017188,87285.0,87267.0,0.0058]
[1766166956172,1.88e-06,87285.0,87273.0,0.0114634]
[1766166956665,1.88e-06,87285.0,87267.0,0.0058]
[1766166956867,1.88e-06,87285.0,87272.0,0.0114635]
[1766166957272,1.88e-06,87285.0,87269.0,0.0114639]
[1766166957468,1.88e-06,87285.0,87267.0,0.0058]
[1766166957968,1.88e-06,87285.0,87268.0,0.11993595]
[1766166958175,1.88e-06,87285.0,87274.0,0.0114632]
[1766166958373,1.88e-06,87285.0,87268.0,0.11993595]
[1766166958374,1.88e-06,87285.0,87282.0,0.0114621]
[1766166958875,1.88e-06,87285.0,87281.0,0.0114623]
[1766166959475,1.88e-06,87285.0,87277.0,0.0114628]
[1766166961272,1.88e-06,87285.0,87275.0,0.0058]
[1766166961974,0.0114593,87304.0,87286.0,0.0114617]
[1766166962178,0.00076,87309.0,87294.0,0.0114606]
[1766166962482,0.0114577,87317.0,87298.0,0.0114601]
[1766166962879,0.0058,87319.0,87295.0,0.0058]
[1766166963177,4.023e-05,87316.0,87302.0,0.0114595]
[1766166963575,2.3e-07,87316.0,87302.0,0.0114595]
[1766166963880,2.3e-07,87316.0,87303.0,0.0058]
[1766166964669,0.0114555,87333.0,87303.0,0.0058]
[1766166964874,0.00384,87341.0,87303.0,0.0058]
[1766166965275,0.0114555,87334.0,87313.0,0.011458]
[1766166965471,0.00384,87341.0,87312.0,0.0114583]
[1766166965669,0.00384,87341.0,87318.0,0.00017178]
[1766166965869,0.0114556,87333.0,87318.0,0.00017178]
[1766166966270,0.0114551,87337.0,87318.0,0.00017178]
[1766166966480,0.00384,87341.0,87318.0,0.00017178]
[1766166966875,0.0114563,87328.0,87318.0,0.00017178]
[1766166967185,0.0114557,87332.0,87318.0,0.00017178]
[1766166968883,0.0114558,87331.0,87318.0,0.00017178]
[1766166969188,0.00384,87341.0,87318.0,0.00017178]
[1766166969481,0.0114563,87327.0,87282.0,0.06169594]
[1766166969669,0.0114586,87310.0,87293.0,0.0114607]
[1766166970184,0.0114586,87310.0,87294.0,0.00568]
[1766166970382,0.0114591,87306.0,87293.0,0.00017178]
[1766166970586,0.00017144,87311.0,87293.0,0.00017178]
[1766166970895,0.00017144,87311.0,87294.0,0.12144376]
[1766166971084,0.00017144,87311.0,87293.0,0.00017178]
[1766166971774,0.0114589,87308.0,87293.0,0.00017178]
[1766166971978,0.00017144,87311.0,87294.0,0.0024]
[1766166972277,0.011459,87307.0,87293.0,0.00017178]
[1766166972479,0.011459,87307.0,87293.0,0.00337178]
[1766166973583,0.0114586,87310.0,87293.0,0.00337178]
[1766166974883,0.00017144,87311.0,87293.0,0.00337178]
[1766166974884,0.00017144,87311.0,87294.0,0.0114605]
[1766166975093,0.0114586,87310.0,87294.0,0.0114605]
[1766166975589,0.0114586,87310.0,87293.0,0.00337178]
[1766166975792,0.0114586,87310.0,87293.0,0.01483248]
[1766166975986,0.00017144,87311.0,87293.0,0.00337178]
[1766166976181,0.00017144,87311.0,87303.0,0.0114594]
[1766166976383,1.44e-06,87311.0,87303.0,0.0114594]
[1766166976781,1.44e-06,87311.0,87305.0,0.0114591]
[1766166976977,1.44e-06,87311.0,87302.0,0.0114595]
[1766166978187,1.44e-06,87311.0,87303.0,0.0058]
[1766166978402,1.44e-06,87311.0,87304.0,0.0114593]
[1766166978786,1.44e-06,87311.0,87303.0,0.0058]
[1766166979190,1.44e-06,87311.0,87304.0,0.0114593]
[1766166980287,1.44e-06,87311.0,87303.0,0.0058]
[1766166980288,1.44e-06,87311.0,87309.0,0.0114586]
[1766166980895,0.0114555,87333.0,87315.0,0.0114579]
[1766166981193,0.09726,87336.0,87315.0,0.0058]
[1766166981992,0.09726,87336.0,87317.0,0.00017178]
[1766166982385,0.0114538,87346.0,87317.0,0.00017178]
[1766166982591,0.0038,87351.0,87329.0,0.011456]
[1766166982792,0.0038,87351.0,87331.0,0.00017178]
[1766166982793,0.011454,87345.0,87331.0,0.00017178]
[1766166982986,0.0114538,87347.0,87331.0,0.00017178]
[1766166983387,0.0038,87351.0,87331.0,0.00017178]
[1766166983388,0.0038,87351.0,87344.0,0.011454]
[1766166983595,0.0114493,87381.0,87331.0,0.00017178]
[1766166983596,0.0058,87358.0,87336.0,0.00512]
[1766166983792,0.0058,87358.0,87338.0,0.0114548]
[1766166984189,0.0114508,87370.0,87336.0,0.00512]
[1766166984490,0.00192,87369.0,87337.0,0.11448524]
[1766166984691,0.0114524,87357.0,87339.0,0.0114547]
[1766166984898,0.0114515,87364.0,87341.0,0.0114545]
[1766166985085,0.00444,87374.0,87340.0,0.54192959]
[1766166985291,0.0114514,87365.0,87348.0,0.00017178]
[1766166985498,0.0114514,87365.0,87349.0,0.0058]
[1766166985993,0.00444,87374.0,87349.0,0.0172533]
[1766166985994,0.0114509,87369.0,87349.0,0.0172533]
[1766166986298,0.00444,87374.0,87349.0,0.0058]
[1766166986486,0.0114512,87366.0,87349.0,0.0058]
[1766166986683,0.0114516,87364.0,87349.0,0.0058]
[1766166986883,0.00444,87374.0,87349.0,0.0058]
[1766166987092,0.0114506,87371.0,87349.0,0.0058]
[1766166987295,0.0114505,87372.0,87349.0,0.0058]
[1766166988285,0.0114524,87358.0,87349.0,0.0058]
[1766166989191,0.00444,87374.0,87348.0,1.78e-06]
[1766166989792,0.0114522,87359.0,87348.0,1.78e-06]
[1766166989999,0.0114525,87356.0,87348.0,1.78e-06]
[1766166991000,0.00017,87362.0,87348.0,1.78e-06]
[1766166992397,0.00017,87362.0,87320.0,0.42157529]
[1766166992597,0.011443,87429.0,87386.0,0.0114486]
[1766166992797,0.06052454,87431.0,87390.0,0.42157529]
[1766166992798,0.03029984,87428.0,87390.0,0.42157529]
[1766166992998,0.0114436,87425.0,87390.0,0.42157529]
[1766166993299,0.0114436,87425.0,87391.0,0.0058]
[1766166993595,0.0114436,87425.0,87368.0,0.24326269]
[1766166993596,0.42157529,87420.0,87369.0,0.0114507]
[1766166993802,0.00157056,87395.0,87386.0,1.6e-06]
[1766166994103,0.0114475,87394.0,87386.0,1.6e-06]
[1766166994495,0.00157056,87395.0,87386.0,1.6e-06]
[1766166995002,0.0058,87407.0,87386.0,1.6e-06]
[1766166995003,0.00157056,87391.0,87386.0,1.6e-06]
[1766166995905,0.00157056,87389.0,87386.0,0.0019616]
[1766166996705,0.0001712,87399.0,87386.0,0.0019616]
[1766166997306,0.0001712,87399.0,87387.0,0.0114484]
[1766166997506,1.2e-06,87399.0,87386.0,0.0019616]
[1766166997708,0.003,87416.0,87395.0,0.0114473]
[1766166997897,0.0114449,87415.0,87396.0,0.0038]
[1766166998098,0.003,87416.0,87396.0,0.0038]
[1766166998308,0.011446,87406.0,87396.0,0.0038]
[1766166998603,0.003,87416.0,87396.0,0.00384]
[1766166998795,0.011445,87413.0,87386.0,1.6e-06]
[1766166998996,0.0114477,87393.0,87385.0,1.6e-06]
[1766166999195,0.003,87416.0,87385.0,1.6e-06]
[1766166999507,0.0114456,87410.0,87389.0,0.0114481]
[1766166999701,0.0114454,87411.0,87391.0,0.0114478]
[1766167000099,0.0114454,87411.0,87393.0,0.0114476]
[1766167000804,0.0114464,87403.0,87392.0,0.0001716]
[1766167001001,0.003,87416.0,87388.0,0.0038]
[1766167001310,0.0114478,87392.0,87374.0,0.0114501]
[1766167001497,0.0114471,87398.0,87379.0,0.0114494]
[1766167001810,0.003,87416.0,87380.0,0.00284]
[1766167001811,0.0114457,87408.0,87380.0,0.00284]
[1766167002006,0.003,87416.0,87385.0,0.0001716]
[1766167002007,0.0114461,87406.0,87385.0,0.0001716]
[1766167002309,0.0001716,87403.0,87389.0,0.0114481]
[1766167002709,0.0001716,87403.0,87385.0,0.0001716]
[1766167002710,0.0114465,87402.0,87385.0,0.0001716]
[1766167003514,0.0001716,87403.0,87385.0,0.0001716]
[1766167003710,0.0001716,87403.0,87381.0,0.00284]
[1766167003711,0.0114483,87389.0,87381.0,0.00284]
[1766167003905,0.0114478,87393.0,87381.0,0.00284]
[1766167004098,0.0114478,87393.0,87373.0,0.0114502]
[1766167004296,0.0114502,87374.0,87359.0,0.0617676]
[1766167004610,0.00568,87404.0,87350.0,0.42157529]
[1766167004611,0.0114489,87384.0,87364.0,0.0114513]
[1766167004809,0.0114465,87403.0,87360.0,0.42737529]
[1766167005000,0.0114487,87385.0,87364.0,0.0114514]